bitfinex/quotes_BTCUSD_20241025
["timestamp","ask_amount","ask_price","bid_price","bid_amount"]
[1729879258291,0.14997,66680.0,66679.0,0.0002496]
[1729879258552,0.149999,66667.0,66666.0,2.10300001]
[1729879258777,0.26247365,66669.0,66667.0,0.2243863]
[1729879259002,0.26247365,66669.0,66666.0,2.10300001]
[1729879259003,0.149999,66667.0,66666.0,2.10300001]
[1729879259227,0.02449754,66667.0,66666.0,2.09800001]
[1729879259483,0.30439555,66667.0,66666.0,2.09800001]
[1729879260427,0.44105795,66667.0,66666.0,2.24850382]
[1729879260870,0.44105795,66667.0,66666.0,2.09800001]
[1729879261110,0.59105695,66667.0,66666.0,2.09800001]
[1729879261554,0.44105795,66667.0,66666.0,2.14800001]
[1729879261792,0.02449754,66667.0,66666.0,2.37360382]
[1729879262037,0.01359306,66667.0,66666.0,2.29850382]
[1729879262267,0.01359306,66667.0,66666.0,2.14800001]
[1729879262490,0.0244675,66667.0,66666.0,2.14800001]
[1729879263631,0.0244675,66667.0,66666.0,2.29850382]
[1729879263876,0.01359306,66667.0,66666.0,2.29850382]
[1729879264380,0.01358359,66671.0,66666.0,2.29850382]
[1729879264381,0.01359306,66670.0,66666.0,2.29850382]
[1729879264607,0.01359306,66670.0,66667.0,0.15050381]
[1729879264848,0.0244528,66671.0,66667.0,0.15050381]
[1729879265082,0.2243863,66668.0,66667.0,0.15050381]
[1729879265330,0.0244528,66671.0,66666.0,2.14800001]
[1729879265551,0.0380165,66668.0,66666.0,2.14800001]
[1729879265768,0.01359306,66667.0,66666.0,2.14800001]
[1729879266256,0.02442344,66671.0,66666.0,2.14800001]
[1729879266257,0.01359306,66670.0,66666.0,2.14800001]
[1729879266482,0.01359306,66669.0,66666.0,2.14800001]
[1729879266710,0.01359306,66668.0,66666.0,2.14800001]
[1729879266932,0.01359306,66667.0,66666.0,2.14882201]
[1729879267394,0.005,66670.0,66666.0,2.14882201]
[1729879267395,0.01359306,66670.0,66666.0,2.29932582]
[1729879267631,0.0380165,66671.0,66667.0,0.15350336]
[1729879267920,0.01085486,66671.0,66670.0,0.007]
[1729879268160,0.25155214,66678.0,66676.0,0.002]
[1729879268161,0.01359306,66677.0,66676.0,0.002]
[1729879268459,0.2293863,66691.0,66670.0,0.15050381]
[1729879268460,0.04503479,66700.0,66685.0,0.002]
[1729879268700,0.04503479,66700.0,66673.0,0.005]
[1729879268701,0.2243863,66698.0,66697.0,0.002]
[1729879268942,0.23525948,66698.0,66697.0,0.002]
[1729879269239,0.2243863,66698.0,66690.0,0.002]
[1729879269472,0.2243863,66698.0,66683.0,0.2711]
[1729879269473,0.2243863,66698.0,66684.0,0.2243863]
[1729879269474,0.40296541,66696.0,66684.0,0.2243863]
[1729879269758,0.001644,66700.0,66695.0,0.002]
[1729879269999,0.001644,66700.0,66685.0,0.15550381]
[1729879270000,0.62735171,66696.0,66685.0,0.15050381]
[1729879270237,0.62735171,66696.0,66687.0,0.2243863]
[1729879270238,0.01088608,66695.0,66687.0,0.2243863]
[1729879270509,0.01088608,66695.0,66671.0,0.0807]
[1729879270510,0.2243863,66688.0,66671.0,0.0807]
[1729879270741,0.40796541,66689.0,66682.0,0.2243863]
[1729879270966,0.05427687,66694.0,66677.0,0.005]
[1729879270967,0.02720953,66688.0,66677.0,0.005]
[1729879271193,0.01360281,66688.0,66680.0,0.002]
[1729879271430,0.01088608,66695.0,66680.0,0.002]
[1729879271670,0.01088608,66695.0,66670.0,0.191]
[1729879271671,0.005,66636.0,66633.0,0.002]
[1729879271899,0.01360905,66652.0,66635.0,0.005]
[1729879272120,0.01360905,66652.0,66648.0,0.005]
[1729879272364,0.01860905,66656.0,66646.0,0.005]
[1729879272598,0.89976606,66654.0,66646.0,0.005]
[1729879272822,0.89976606,66664.0,66654.0,0.005]
[1729879272823,0.005,66659.0,66654.0,0.005]
[1729879273050,0.91064567,66656.0,66654.0,0.005]
[1729879273270,0.01358536,66663.0,66654.0,0.005]
[1729879273271,0.01087961,66655.0,66654.0,0.005]
[1729879273485,0.0294605,66662.0,66654.0,0.005]
[1729879273727,0.0294605,66662.0,66657.0,0.005]
[1729879273728,0.0244605,66662.0,66657.0,0.005]
[1729879273950,0.0244605,66662.0,66660.0,0.005]
[1729879273951,0.01087961,66662.0,66660.0,0.005]
[1729879274172,0.005,66665.0,66660.0,0.005]
[1729879274427,0.03804203,66670.0,66647.0,0.1929]
[1729879274428,0.03804203,66670.0,66668.0,0.005]
[1729879274653,0.03804203,66670.0,66669.0,0.15750381]
[1729879274892,0.04346171,66687.0,66679.0,0.007]
[1729879274893,0.02446244,66680.0,66679.0,0.007]
[1729879275122,0.89976606,66687.0,66679.0,0.007]
[1729879275123,0.02446245,66686.0,66685.0,0.005]
[1729879275352,0.89976606,66687.0,66686.0,0.002]
[1729879275585,0.001644,66700.0,66699.0,0.005]
[1729879275848,0.90141006,66700.0,66699.0,0.007]
[1729879276076,0.001644,66700.0,66699.0,0.005]
[1729879276571,0.001644,66700.0,66691.0,0.005]
[1729879276572,0.005,66697.0,66691.0,0.005]
[1729879276802,0.005,66697.0,66692.0,0.22490779]
[1729879277086,0.41547851,66700.0,66680.0,0.0793]
[1729879277087,0.40296541,66693.0,66680.0,0.0793]
[1729879277316,0.40296541,66693.0,66657.0,1.5]
[1729879277317,0.40796541,66681.0,66671.0,0.005]
[1729879277555,0.005,66679.0,66671.0,0.005]
[1729879278018,0.005,66679.0,66658.0,0.22690779]
[1729879278019,0.005,66671.0,66664.0,0.005]
[1729879278240,0.005,66671.0,66667.0,0.22490779]
[1729879278464,0.40296541,66665.0,66658.0,0.22490779]
[1729879278680,0.03802326,66664.0,66658.0,0.22490779]
[1729879278908,0.03802326,66664.0,66660.0,0.005]
[1729879279128,0.005,66666.0,66660.0,0.005]
[1729879279366,0.005,66658.0,66646.0,0.005]
[1729879279615,0.005,66658.0,66629.0,0.00108896]
[1729879279616,0.40296541,66647.0,66639.0,0.000823]
[1729879280074,0.01357185,66646.0,66644.0,0.005]
[1729879280303,0.02712863,66653.0,66649.0,0.005]
[1729879280524,0.22490779,66650.0,66649.0,0.005]
[1729879280747,0.01857185,66650.0,66646.0,0.005]
[1729879280974,0.005,66651.0,66646.0,0.005]
[1729879281200,0.02444095,66653.0,66639.0,0.000823]
[1729879281201,0.40296541,66647.0,66640.0,0.005]
[1729879281457,0.01357185,66646.0,66639.0,0.000823]
[1729879281717,0.01857185,66646.0,66640.0,0.22490779]
[1729879281965,0.0108691,66653.0,66639.0,0.005823]
[1729879281966,0.005,66650.0,66643.0,0.005]
[1729879282244,0.005,66650.0,66639.0,0.002823]
[1729879282245,0.6278732,66647.0,66639.0,0.000823]
[1729879282475,0.0108691,66646.0,66642.0,0.005]
[1729879282701,0.0108691,66646.0,66639.0,0.000823]
[1729879282702,0.02444095,66646.0,66645.0,0.005]
[1729879282941,0.005,66650.0,66645.0,0.005]
[1729879283158,0.005,66649.0,66645.0,0.005]
[1729879283671,0.005,66649.0,66646.0,0.005]
[1729879284160,0.005,66649.0,66645.0,0.005]
[1729879284396,0.005,66649.0,66644.0,0.005]
[1729879284636,0.02444095,66653.0,66639.0,0.000823]
[1729879284637,0.005,66646.0,66639.0,0.000823]
[1729879284891,0.005,66645.0,66639.0,0.000823]
[1729879285153,0.005,66649.0,66645.0,0.005]
[1729879285394,0.005,66650.0,66646.0,0.005]
[1729879286113,0.005,66650.0,66640.0,0.005]
[1729879286642,0.005,66650.0,66639.0,0.000823]
[1729879286643,0.005,66644.0,66639.0,0.000823]
[1729879286919,0.005,66644.0,66608.0,0.002]
[1729879286920,0.0516,66639.0,66608.0,0.002]
[1729879287144,0.0516,66639.0,66624.0,0.005]
[1729879287145,0.005,66630.0,66624.0,0.005]
[1729879287377,0.005,66630.0,66624.0,0.0080016]
[1729879287613,0.005,66630.0,66624.0,0.005]
[1729879287887,0.15550381,66630.0,66616.0,0.005]
[1729879288124,0.15550381,66630.0,66614.0,0.22860939]
[1729879288125,0.01355508,66630.0,66629.0,0.00608896]
[1729879288355,0.005,66633.0,66629.0,0.00608896]
[1729879288860,0.24725703,66630.0,66629.0,0.00108896]
[1729879289150,0.18640813,66630.0,66629.0,0.00108896]
[1729879289398,0.17990295,66630.0,66629.0,0.00108896]
[1729879290095,0.02939914,66630.0,66629.0,0.00108896]
[1729879290327,0.005,66630.0,66629.0,0.00108896]
[1729879290590,0.005,66629.0,66620.0,0.0177257]
[1729879290866,0.005,66629.0,66614.0,0.0007]
[1729879290867,0.005,66615.0,66614.0,0.0007]
[1729879291329,0.02437878,66620.0,66619.0,0.005]
[1729879291599,0.02437878,66620.0,66614.0,0.15120381]
[1729879291600,0.005,66621.0,66620.0,0.005]
[1729879291817,0.005,66621.0,66614.0,0.0007]
[1729879291818,0.005,66618.0,66614.0,0.0007]
[1729879292280,0.01355508,66620.0,66614.0,0.0007]
[1729879292528,0.0108237,66621.0,66614.0,0.0007]
[1729879292529,0.22490779,66619.0,66615.0,0.15050381]
[1729879292773,0.01355508,66618.0,66615.0,0.15050381]
[1729879293010,0.01355508,66618.0,66614.0,0.0007]
[1729879293263,0.01355508,66621.0,66614.0,0.15120381]
[1729879293521,0.01355508,66621.0,66616.0,0.002]
[1729879293775,0.22490779,66626.0,66615.0,0.15050381]
[1729879293776,0.0243518,66625.0,66619.0,0.002]
[1729879294014,0.0243518,66625.0,66620.0,0.15050381]
[1729879294015,0.01355508,66625.0,66620.0,0.15050381]
[1729879294267,0.22490779,66626.0,66620.0,0.15050381]
[1729879294510,0.22490779,66626.0,66614.0,0.0007]
[1729879294511,0.005,66615.0,66614.0,0.0007]
[1729879294748,0.15550381,66615.0,66614.0,0.0007]
[1729879294997,0.31911307,66615.0,66614.0,0.0007]
[1729879295237,0.33490543,66615.0,66614.0,0.0007]
[1729879295497,0.40280303,66615.0,66614.0,0.0007]
[1729879295749,0.40280303,66615.0,66596.0,0.07338509]
[1729879295750,0.55811241,66601.0,66596.0,0.07338509]
[1729879295981,0.77095909,66601.0,66596.0,0.07338509]
[1729879296228,0.005,66600.0,66580.0,0.0001069]
[1729879296477,0.005,66575.0,66571.0,0.00517045]
[1729879297464,0.15550381,66575.0,66571.0,0.00517045]
[1729879297734,0.15550381,66575.0,66563.0,0.00112069]
[1729879297735,0.57318941,66567.0,66563.0,0.00112069]
[1729879297978,0.44865879,66567.0,66563.0,0.00112069]
[1729879298203,0.43145867,66567.0,66563.0,0.00112069]
[1729879298461,0.43221075,66567.0,66563.0,0.00112069]
[1729879298684,0.42145867,66567.0,66563.0,0.00112069]
[1729879298927,0.43219199,66567.0,66563.0,0.00112069]
[1729879299387,0.71869322,66567.0,66563.0,0.00112069]
[1729879299618,0.74286039,66567.0,66563.0,0.00112069]
[1729879299872,0.73786039,66567.0,66563.0,0.00112069]
[1729879300125,0.165249,66556.0,66553.0,0.0177257]
[1729879300414,0.58263639,66556.0,66553.0,0.0177257]
[1729879300673,0.02916717,66556.0,66553.0,0.0177257]
[1729879300933,0.005,66570.0,66555.0,0.20050381]
[1729879301164,0.22490779,66568.0,66557.0,0.002]
[1729879301395,0.22490779,66568.0,66558.0,0.15050381]
[1729879301620,0.005,66573.0,66561.0,0.005]
[1729879301848,0.22490779,66575.0,66562.0,0.15050381]
[1729879301849,0.22490779,66568.0,66562.0,0.15050381]
[1729879302074,0.22490779,66575.0,66562.0,0.15050381]
[1729879302309,0.003,66579.0,66562.0,0.15050381]
[1729879302310,0.22490779,66574.0,66563.0,0.1882]
[1729879302557,0.22490779,66574.0,66564.0,0.15050381]
[1729879302844,0.008,66595.0,66574.0,0.005]
[1729879303074,0.003,66565.0,66555.0,0.05]
[1729879303317,0.22490779,66581.0,66555.0,0.05]
[1729879303318,0.008,66569.0,66557.0,0.22490779]
[1729879303550,0.40296541,66579.0,66555.0,0.05]
[1729879303551,0.008,66562.0,66555.0,0.05]
[1729879303789,0.008,66556.0,66555.0,0.05]
[1729879305462,0.006,66556.0,66555.0,0.1]
[1729879306466,0.006,66556.0,66529.0,0.22490779]
[1729879306467,0.005,66539.0,66532.0,0.22490779]
[1729879306686,0.40296541,66548.0,66532.0,0.22490779]
[1729879306687,0.005,66544.0,66532.0,0.22490779]
[1729879306917,0.40296541,66548.0,66532.0,0.22490779]
[1729879306918,0.005,66554.0,66532.0,0.22490779]
[1729879307146,0.22490779,66553.0,66534.0,0.300598]
[1729879307367,0.22490779,66561.0,66534.0,0.0799]
[1729879307368,0.22490779,66552.0,66534.0,0.0799]
[1729879307588,0.22490779,66551.0,66550.0,0.15050381]
[1729879307845,0.02408415,66560.0,66550.0,0.15050381]
[1729879308069,0.22490779,66551.0,66550.0,0.15050381]
[1729879308308,0.01070394,66560.0,66550.0,0.15050381]
[1729879308830,0.23561173,66560.0,66550.0,0.15050381]
[1729879309121,0.23561173,66560.0,66532.0,0.300603]
[1729879309122,0.005,66539.0,66534.0,0.22490779]
[1729879309351,0.40296541,66535.0,66534.0,0.27490779]
[1729879309597,0.41796541,66535.0,66534.0,0.05]
[1729879309863,0.41996541,66535.0,66534.0,0.05]
[1729879310329,0.41996541,66535.0,66512.0,0.025]
[1729879310330,0.01,66513.0,66512.0,0.025]
[1729879310774,0.012,66513.0,66512.0,0.025]
[1729879311007,0.01,66513.0,66512.0,0.025]
[1729879311229,0.015,66513.0,66512.0,0.025]
[1729879311456,0.16750381,66513.0,66512.0,0.02]
[1729879311685,0.01,66513.0,66512.0,0.02]
[1729879312147,0.015,66513.0,66512.0,0.02]
[1729879312370,0.01,66513.0,66512.0,0.02]
[1729879313148,0.005,66520.0,66512.0,0.02]
[1729879313368,0.002,66515.0,66513.0,0.15050381]
[1729879314313,0.22990779,66535.0,66514.0,0.3754116]
[1729879314543,0.22490779,66524.0,66514.0,0.22950381]
[1729879314793,0.22990779,66535.0,66518.0,0.15050381]
[1729879315020,0.22490779,66527.0,66525.0,0.15050381]
[1729879315254,0.22490779,66534.0,66514.0,0.079]
[1729879315255,0.40296541,66532.0,66514.0,0.079]
[1729879315487,0.01,66535.0,66527.0,0.22490779]
[1729879315705,0.22490779,66534.0,66517.0,0.22490779]
[1729879316221,0.22490779,66533.0,66523.0,0.15050381]
[1729879316489,0.001648,66538.0,66523.0,0.15050381]
[1729879316720,0.001648,66538.0,66537.0,0.15050381]
[1729879316949,0.001648,66538.0,66537.0,0.30079581]
[1729879317174,0.23561173,66560.0,66540.0,0.150284]
[1729879317424,0.23561173,66560.0,66546.0,0.15050381]
[1729879317682,0.0107197,66550.0,66546.0,0.15050381]
[1729879317900,0.0107197,66550.0,66549.0,0.15050381]
[1729879318164,0.01070394,66560.0,66549.0,0.15050381]
[1729879318399,0.005,66562.0,66549.0,0.15050381]
[1729879319106,0.007,66569.0,66551.0,0.21990779]
[1729879319107,0.005,66563.0,66551.0,0.21990779]
[1729879319343,0.01075454,66577.0,66551.0,0.21990779]
[1729879319344,0.002,66571.0,66555.0,0.15050381]
[1729879319564,0.22990779,66568.0,66555.0,0.15050381]
[1729879319829,0.005,66568.0,66556.0,0.22490779]
[1729879320067,0.005,66558.0,66557.0,0.15050381]
[1729879320318,0.005,66558.0,66543.0,0.22490779]
[1729879320319,0.002,66548.0,66543.0,0.22490779]
[1729879320550,0.85896022,66558.0,66543.0,0.22490779]
[1729879320551,0.012,66544.0,66543.0,0.22490779]
[1729879320777,0.005,66548.0,66533.0,0.22490779]
[1729879321005,0.150232,66564.0,66533.0,0.22490779]
[1729879321006,0.005,66540.0,66533.0,0.22490779]
[1729879321253,0.41496541,66534.0,66507.0,0.50085]
[1729879321495,0.005,66530.0,66507.0,0.50085]
[1729879321726,0.40496541,66534.0,66508.0,0.300713]
[1729879321727,0.01077145,66533.0,66508.0,0.300713]
[1729879322081,0.40296541,66544.0,66507.0,0.50085]
[1729879322082,0.22490779,66560.0,66541.0,0.150282]
[1729879322311,0.22490779,66560.0,66541.0,0.5]
[1729879322312,0.22490779,66543.0,66541.0,0.5]
[1729879322556,0.22490779,66569.0,66542.0,0.22490779]
[1729879322557,0.40296541,66567.0,66542.0,0.22490779]
[1729879322771,0.22490779,66569.0,66555.0,0.15025]
[1729879323012,0.005,66590.0,66555.0,0.15025]
[1729879323013,0.22490779,66568.0,66555.0,0.023]
[1729879323306,0.22990779,66578.0,66568.0,0.150221]
[1729879323307,0.22490779,66578.0,66568.0,0.150221]
[1729879323533,0.22490779,66578.0,66563.0,0.0753]
[1729879323534,0.22490779,66569.0,66563.0,0.1]
[1729879323742,0.22490779,66578.0,66558.0,0.22490779]
[1729879323743,0.40296541,66573.0,66558.0,0.22490779]
[1729879324035,0.40296541,66573.0,66559.0,0.1]
[1729879324281,0.41296541,66580.0,66559.0,0.1]
[1729879324521,0.005,66569.0,66564.0,0.15050381]
[1729879324755,0.01081891,66579.0,66551.0,0.0756]
[1729879324756,0.005,66563.0,66551.0,0.0753]
[1729879324996,0.0047,66559.0,66551.0,0.15050381]
[1729879325234,0.005,66557.0,66551.0,0.15050381]
[1729879325482,0.40296541,66552.0,66551.0,0.15050381]
[1729879325734,0.40296541,66552.0,66536.0,0.075]
[1729879325735,0.005,66543.0,66536.0,0.075]
[1729879325948,0.005,66543.0,66542.0,0.22490779]
[1729879325949,0.40796541,66543.0,66542.0,0.22490779]
[1729879326198,0.01082694,66552.0,66542.0,0.22490779]
[1729879326429,0.01082694,66552.0,66551.0,0.15080381]
[1729879326670,0.22490779,66565.0,66555.0,0.300501]
[1729879326908,0.22490779,66565.0,66543.0,0.300853]
[1729879327152,0.005,66570.0,66558.0,0.22490779]
[1729879327379,0.005,66570.0,66549.0,0.22490779]
[1729879327380,0.0047,66575.0,66552.0,0.300516]
[1729879327605,0.0047,66565.0,66549.0,0.0003]
[1729879327833,0.007,66554.0,66550.0,0.22490779]
[1729879328074,0.002,66551.0,66550.0,0.22490779]
[1729879328296,0.002,66544.0,66538.0,0.22490779]
[1729879328535,0.0067,66544.0,66539.0,0.15050381]
[1729879328810,0.40296541,66557.0,66542.0,0.15050381]
[1729879328811,0.0047,66557.0,66542.0,0.15050381]
[1729879329045,0.22990779,66556.0,66542.0,0.15050381]
[1729879329284,0.22490779,66556.0,66542.0,0.15050381]
[1729879329512,0.22490779,66556.0,66534.0,0.487694]
[1729879329513,0.0047,66543.0,66535.0,0.22490779]
[1729879329749,0.005,66544.0,66535.0,0.22490779]
[1729879329750,0.0097,66544.0,66542.0,0.22490779]
[1729879329987,0.0047,66543.0,66536.0,0.15050381]
[1729879330446,0.0067,66543.0,66536.0,0.15050381]
[1729879330693,0.41766541,66538.0,66532.0,0.000824]
[1729879330937,0.33050481,66533.0,66532.0,0.000824]
[1729879331141,0.32750481,66533.0,66532.0,0.000824]
[1729879331579,0.17220381,66533.0,66532.0,0.000824]
[1729879331807,0.0147,66533.0,66532.0,0.000824]
[1729879332499,0.18020381,66533.0,66532.0,0.000824]
[1729879332721,0.32050481,66533.0,66532.0,0.000824]
[1729879332953,0.0167,66513.0,66512.0,0.020824]
[1729879333201,0.41966541,66513.0,66512.0,0.020824]
[1729879333655,0.0167,66513.0,66512.0,0.020824]
[1729879333872,0.41966541,66513.0,66512.0,0.020824]
[1729879334311,0.57516922,66513.0,66512.0,0.020824]
[1729879334525,0.56516922,66513.0,66512.0,0.020824]
[1729879334755,0.0147,66513.0,66512.0,0.020824]
[1729879335474,0.57016922,66513.0,66512.0,0.020824]
[1729879335704,0.0097,66513.0,66512.0,0.020824]
[1729879335945,0.005,66519.0,66512.0,0.17132781]
[1729879336156,0.0097,66519.0,66512.0,0.020824]
[1729879336416,0.005,66519.0,66512.0,0.17132781]
[1729879336646,0.0047,66521.0,66512.0,0.17132781]
[1729879336647,0.005,66523.0,66513.0,0.15050381]
[1729879336896,0.005,66523.0,66515.0,0.150341]
[1729879337129,0.22490779,66531.0,66512.0,0.020824]
[1729879337130,0.005,66531.0,66516.0,0.15351]
[1729879337387,0.0097,66535.0,66517.0,0.22490779]
[1729879337615,0.22490779,66531.0,66523.0,0.15050381]
[1729879337837,0.22490779,66531.0,66527.0,0.300629]
[1729879338063,0.22490779,66531.0,66530.0,0.150308]
[1729879338278,0.22990779,66538.0,66530.0,0.15050381]
[1729879338535,0.005,66527.0,66509.0,0.22560779]
[1729879338749,0.22490779,66538.0,66520.0,0.20382057]
[1729879338750,0.0047,66522.0,66520.0,0.20382057]
[1729879339258,0.002,66519.0,66513.0,0.15050381]
[1729879339485,0.0047,66522.0,66516.0,0.22490779]
[1729879339738,0.002,66533.0,66519.0,0.300665]
[1729879339983,0.22490779,66528.0,66523.0,0.300647]
[1729879340226,0.01080423,66537.0,66524.0,0.15050381]
[1729879340227,0.002,66534.0,66524.0,0.15050381]
[1729879340473,0.22490779,66531.0,66524.0,0.15050381]
[1729879340725,0.0047,66537.0,66528.0,0.150311]
[1729879340988,0.0047,66537.0,66529.0,0.15050381]
[1729879341264,0.22490779,66545.0,66531.0,0.0776]
[1729879341547,0.22490779,66535.0,66532.0,0.34330381]
[1729879341762,0.0047,66541.0,66532.0,0.3754116]
[1729879342002,0.22490779,66540.0,66532.0,0.15050381]
[1729879342229,0.0047,66541.0,66532.0,0.15050381]
[1729879342712,0.005,66528.0,66518.0,0.0776]
[1729879342963,0.40496541,66534.0,66518.0,0.22490779]
[1729879342964,0.005,66521.0,66518.0,0.22490779]
[1729879343204,0.01082292,66533.0,66518.0,0.22490779]
[1729879343431,0.01082292,66533.0,66510.0,0.01182885]
[1729879343432,0.22490779,66531.0,66530.0,0.150308]
[1729879343666,0.22490779,66531.0,66528.0,0.00300578]
[1729879343909,0.005,66538.0,66511.0,0.5003]
[1729879343910,0.0047,66538.0,66530.0,0.22490779]
[1729879344157,0.005,66542.0,66531.0,0.15050381]
[1729879344158,0.22490779,66537.0,66531.0,0.15050381]
[1729879344654,0.0117,66542.0,66531.0,0.15050381]
[1729879344914,0.22990779,66545.0,66512.0,0.213624]
[1729879344915,0.0047,66530.0,66512.0,0.213624]
[1729879345125,0.0047,66530.0,66525.0,0.22490779]
[1729879345354,0.0047,66538.0,66526.0,0.15350961]
[1729879345605,0.22490779,66535.0,66526.0,0.30081981]
[1729879345820,0.0047,66538.0,66526.0,0.15050381]
[1729879346056,0.0047,66538.0,66528.0,0.150312]
[1729879346279,0.0047,66538.0,66522.0,0.300649]
[1729879346280,0.0147,66520.0,66512.0,0.24573179]
[1729879346510,0.16520381,66520.0,66512.0,0.24573179]
[1729879346983,0.16520381,66520.0,66512.0,0.020824]
[1729879347207,0.16720381,66520.0,66512.0,0.020824]
[1729879348338,0.0167,66520.0,66512.0,0.020824]
[1729879348555,0.16720381,66520.0,66512.0,0.020824]
[1729879349578,0.17802351,66520.0,66512.0,0.020824]
[1729879349794,0.17802351,66520.0,66519.0,0.050824]
[1729879350273,0.17802351,66520.0,66512.0,0.020824]
[1729879350274,0.0117,66513.0,66512.0,0.020824]
[1729879350515,0.0117,66513.0,66512.0,0.24573179]
[1729879350516,0.0147,66513.0,66512.0,0.24573179]
[1729879350755,0.002,66516.0,66512.0,0.020824]
[1729879350756,0.0047,66515.0,66512.0,0.020824]
[1729879350972,0.0047,66517.0,66513.0,0.3754116]
[1729879351189,0.0047,66518.0,66513.0,0.15050381]
[1729879352345,0.0047,66523.0,66514.0,0.00300633]
[1729879352609,0.0117,66524.0,66515.0,0.15050381]
[1729879352820,0.0047,66524.0,66516.0,0.00300622]
[1729879353046,0.0047,66524.0,66517.0,0.15050381]
[1729879353269,0.005,66531.0,66518.0,0.231934]
[1729879353529,0.002,66534.0,66519.0,0.15350968]
[1729879353530,0.22490779,66527.0,66519.0,0.15350968]
[1729879353780,0.001648,66532.0,66521.0,0.15050381]
[1729879354064,0.22490779,66527.0,66521.0,0.15050381]
[1729879354275,0.22490779,66527.0,66515.0,0.000824]
[1729879354276,0.0047,66522.0,66515.0,0.000824]
[1729879354497,0.0047,66522.0,66516.0,0.15050381]
[1729879355203,0.0047,66523.0,66516.0,0.15050381]
[1729879355452,0.005,66525.0,66516.0,0.15050381]
[1729879355453,0.0047,66522.0,66516.0,0.15050381]
[1729879355685,0.0047,66523.0,66516.0,0.15050381]
[1729879355918,0.0047,66522.0,66517.0,0.00300616]
[1729879356131,0.23739578,66532.0,66520.0,0.150329]
[1729879356349,0.22490779,66525.0,66521.0,0.15050381]
[1729879356616,0.22490779,66525.0,66515.0,0.301507]
[1729879356617,0.005,66517.0,66515.0,0.000824]
[1729879356844,0.41766541,66516.0,66515.0,0.000824]
[1729879357086,0.74706321,66516.0,66515.0,0.000824]
[1729879357317,0.74706321,66516.0,66510.0,0.01182885]
[1729879357318,0.180051,66511.0,66510.0,0.01182885]
[1729879357534,0.2378848,66511.0,66510.0,0.01182885]
[1729879357763,0.19460444,66511.0,66510.0,0.01182885]
[1729879358005,0.18960444,66511.0,66510.0,0.01182885]
[1729879358257,0.19460444,66511.0,66510.0,0.01182885]
[1729879358506,0.18960444,66511.0,66510.0,0.01182885]
[1729879358742,0.03910063,66511.0,66510.0,0.01182885]
[1729879358969,0.03910063,66511.0,66501.0,0.22490779]
[1729879358970,0.0047,66506.0,66501.0,0.22490779]
[1729879359192,0.02940063,66511.0,66501.0,0.22490779]
[1729879359193,0.0097,66502.0,66501.0,0.22490779]
[1729879359433,0.0047,66506.0,66501.0,0.22490779]
[1729879359648,0.005,66509.0,66502.0,0.15050381]
[1729879359649,0.0047,66509.0,66502.0,0.15050381]
[1729879359894,0.005,66512.0,66497.0,0.0809]
[1729879359896,0.005,66503.0,66497.0,0.0809]
[1729879360137,0.005,66503.0,66493.0,0.26119146]
[1729879360138,0.01451915,66501.0,66493.0,0.26119146]
[1729879360458,0.72336137,66501.0,66493.0,0.26119146]
[1729879360670,0.74776857,66501.0,66493.0,0.26119146]
[1729879361100,0.74976857,66501.0,66493.0,0.26119146]
[1729879361325,1.11980102,66501.0,66493.0,0.26119146]
[1729879361553,0.89489323,66501.0,66500.0,1.0994666]
[1729879362015,0.75976857,66501.0,66500.0,1.0994666]
[1729879362494,0.75976857,66501.0,66493.0,0.26119146]
[1729879362495,0.56987356,66494.0,66493.0,0.26119146]
[1729879362739,0.74478457,66494.0,66493.0,0.26119146]
[1729879362970,0.75478457,66494.0,66493.0,0.26119146]
[1729879363180,0.74478457,66494.0,66493.0,0.26119146]
[1729879363403,0.74978457,66494.0,66486.0,0.0177257]
[1729879363621,0.22490779,66496.0,66474.0,0.22490779]
[1729879363622,0.18193715,66481.0,66474.0,0.22490779]
[1729879363857,0.19134435,66481.0,66474.0,0.22490779]
[1729879364142,0.17778279,66481.0,66474.0,0.22490779]
[1729879364374,0.17778279,66481.0,66467.0,0.22490779]
[1729879364375,0.19278279,66481.0,66467.0,0.22490779]
[1729879365033,0.18778279,66481.0,66467.0,0.22490779]
[1729879365522,0.02736479,66481.0,66467.0,0.22490779]
[1729879365736,0.01651915,66481.0,66467.0,0.22490779]
[1729879366175,0.01638023,66481.0,66467.0,0.22490779]
[1729879366389,0.01638023,66481.0,66474.0,0.22490779]
[1729879366658,0.01438023,66481.0,66474.0,0.22490779]
[1729879366895,0.01438023,66481.0,66467.0,0.22490779]
[1729879366896,0.00951915,66481.0,66480.0,0.00089921]
[1729879367157,0.57484945,66481.0,66480.0,0.00089921]
[1729879367382,0.83733349,66481.0,66480.0,0.00089921]
[1729879367604,0.83732216,66481.0,66480.0,0.00089921]
[1729879367827,0.8346377,66481.0,66480.0,0.00089921]
[1729879368255,0.58065145,66481.0,66480.0,0.00089921]
[1729879368493,0.73106945,66481.0,66480.0,0.00089921]
[1729879369167,0.010802,66481.0,66480.0,0.00089921]
[1729879369397,0.00451915,66489.0,66480.0,0.15140302]
[1729879369641,0.00451915,66489.0,66481.0,0.15351164]
[1729879369642,0.00451915,66486.0,66481.0,0.15351164]
[1729879369856,0.00451915,66481.0,66480.0,0.00089921]
[1729879370084,0.41734564,66481.0,66480.0,0.00089921]
[1729879370320,0.56976364,66481.0,66480.0,0.00089921]
[1729879370751,0.41934564,66481.0,66480.0,0.00089921]
[1729879371420,0.02716833,66481.0,66480.0,0.00089921]
[1729879371643,0.01638023,66481.0,66480.0,0.00089921]
[1729879372111,0.41934564,66481.0,66479.0,0.00342821]
[1729879372343,0.02017348,66480.0,66479.0,0.00342821]
[1729879372567,0.32609829,66480.0,66479.0,0.00342821]
[1729879372810,0.34309829,66480.0,66479.0,0.00342821]
[1729879373088,0.34309829,66480.0,66476.0,0.00147056]
[1729879373089,0.17980723,66477.0,66476.0,0.00147056]
[1729879373341,0.57278464,66472.0,66468.0,0.22490779]
[1729879373590,0.72328845,66472.0,66468.0,0.22490779]
[1729879373840,0.7340817,66472.0,66452.0,0.22490779]